lending/lending_fUSD_20240112
["ID","MTS","AMOUNT","RATE_DAILY","PERIOD"]
[311326730,1705063843324,-500.0,0.00022592,2]
[311326732,1705063843333,-500.0,0.00022592,2]
[311326734,1705063843342,-500.0,0.00022592,2]
[311326736,1705063843351,-635.88643752,0.00022592,2]
[311326738,1705063843360,-547.95,0.00022592,2]
[311326740,1705063843370,-500.0,0.00022592,2]
[311326742,1705063843379,-500.0,0.00022592,2]
[311326743,1705063843388,-500.0,0.00022592,2]
[311326745,1705063843398,-500.0,0.00022592,2]
[311326747,1705063843406,-579.89,0.00022592,2]
[311326749,1705063843415,-500.0,0.00022592,2]
[311326751,1705063843424,-500.0,0.00022592,2]
[311326752,1705063843433,-500.0,0.00022592,2]
[311326755,1705063843443,-500.0,0.00022592,2]
[311326756,1705063843451,-500.0,0.00022592,2]
[311326758,1705063843462,-500.0,0.00022592,2]
[311326760,1705063843471,-500.0,0.00022592,2]
[311326762,1705063843479,-500.0,0.00022592,2]
[311326764,1705063843489,-500.0,0.00022592,2]
[311326766,1705063843498,-500.0,0.00022592,2]
[311326768,1705063843507,-500.0,0.00022592,2]
[311326770,1705063843516,-548.75,0.00022592,2]
[311326772,1705063843525,-500.0,0.00022592,2]
[311326774,1705063843534,-500.0,0.00022592,2]
[311326776,1705063843543,-500.0,0.00022592,2]
[311326778,1705063843552,-500.0,0.00022592,2]
[311326780,1705063843561,-500.0,0.00022592,2]
[311326782,1705063843570,-500.0,0.00022592,2]
[311326784,1705063843579,-500.0,0.00022592,2]
[311326786,1705063843588,-500.0,0.00022592,2]
[311326788,1705063843598,-1230.23,0.00022592,2]
[311326790,1705063843607,-500.0,0.00022592,2]
[311326792,1705063843618,-500.0,0.00022592,2]
[311326794,1705063843627,-500.0,0.00022592,2]
[311326796,1705063843636,-500.0,0.00022592,2]
[311326798,1705063843645,-500.0,0.00022592,2]
[311326800,1705063843655,-500.0,0.00022592,2]
[311326802,1705063843663,-500.0,0.00022592,2]
[311326804,1705063843672,-255.78981471,0.00022592,2]
[311326806,1705063843681,-500.0,0.00022592,2]
[311326808,1705063843690,-500.0,0.00022592,2]
[311326810,1705063843700,-500.0,0.00022592,2]
[311326812,1705063843709,-3472.6,0.00022592,2]
[311326814,1705063843718,-500.0,0.00022592,2]
[311326816,1705063843727,-500.0,0.00022592,2]
[311326818,1705063843736,-1043.35,0.00022592,2]
[311326820,1705063843745,-500.0,0.00022592,2]
[311326821,1705063843755,-500.0,0.00022592,2]
[311326823,1705063843764,-537.69,0.00022592,2]
[311326825,1705063843773,-853.59,0.00022592,2]
[311326827,1705063843782,-500.0,0.00022592,2]
[311326829,1705063843791,-500.0,0.00022592,2]
[311326831,1705063843801,-500.0,0.00022592,2]
[311326832,1705063843810,-500.0,0.00022592,2]
[311326833,1705063843819,-300.0,0.00022592,2]
[311326834,1705063843829,-500.0,0.00022592,2]
[311326835,1705063843838,-500.0,0.00022592,2]
[311326836,1705063843847,-500.0,0.00022592,2]
[311326837,1705063843856,-500.0,0.00022592,2]
[311326838,1705063843866,-500.0,0.00022592,2]
[311326839,1705063843875,-500.0,0.00022592,2]
[311326840,1705063843884,-500.0,0.00022592,2]
[311326841,1705063843893,-3508.3,0.00022592,2]
[311326842,1705063843902,-500.0,0.00022592,2]
[311326843,1705063843911,-500.0,0.00022592,2]
[311326845,1705063843920,-500.0,0.00022592,2]
[311326847,1705063843930,-500.0,0.00022592,2]
[311326849,1705063843939,-500.0,0.00022592,2]
[311326851,1705063843948,-619.56,0.00022592,2]
[311326853,1705063843957,-500.0,0.00022592,2]
[311326855,1705063843966,-500.0,0.00022592,2]
[311326857,1705063843975,-500.0,0.00022592,2]
[311326859,1705063843984,-939.84,0.00022592,2]
[311326861,1705063843993,-2401.03,0.00022592,5]
[311326862,1705063844002,-500.0,0.00022592,2]
[311326864,1705063844011,-500.0,0.00022592,2]
[311326866,1705063844020,-500.0,0.00022592,2]
[311326868,1705063844029,-511.36806484,0.00022592,2]
[311326871,1705063844039,-500.0,0.00022592,2]
[311326872,1705063844048,-500.0,0.00022592,2]
[311326875,1705063844057,-500.0,0.00022592,2]
[311326877,1705063844066,-500.0,0.00022592,2]
[311326878,1705063844076,-505.5,0.00022592,2]
[311326881,1705063844085,-500.0,0.00022592,2]
[311326883,1705063844095,-500.0,0.00022592,2]
[311326885,1705063844104,-1105.06,0.00022592,2]
[311326887,1705063844114,-500.0,0.00022592,2]
[311326888,1705063844125,-522.95,0.00022592,2]
[311326890,1705063844135,-500.0,0.00022592,2]
[311326893,1705063844144,-505.97460357,0.00022592,2]
[311326895,1705063844154,-500.0,0.00022592,2]
[311326897,1705063844165,-566.00338462,0.00022592,2]
[311326899,1705063844174,-500.0,0.00022592,2]
[311326901,1705063844184,-500.0,0.00022592,2]
[311326903,1705063844193,-500.0,0.00022592,2]
[311326905,1705063844202,-500.0,0.00022592,2]
[311326907,1705063844214,-1354.24,0.00022592,2]
[311326909,1705063844223,-500.0,0.00022592,2]
[311326911,1705063844233,-500.0,0.00022592,2]
[311326913,1705063844242,-500.0,0.00022592,2]
[311326915,1705063844252,-503.13980784,0.00022592,2]
[311326917,1705063844262,-500.0,0.00022592,2]
[311326919,1705063844272,-500.0,0.00022592,2]
[311326921,1705063844282,-500.0,0.00022592,2]
[311326923,1705063844291,-500.0,0.00022592,2]
[311326925,1705063844303,-500.0,0.00022592,2]
[311326927,1705063844313,-500.0,0.00022592,2]
[311326929,1705063844323,-500.0,0.00022592,2]
[311326931,1705063844332,-500.0,0.00022592,2]
[311326934,1705063844342,-500.0,0.00022592,2]
[311326936,1705063844352,-500.0,0.00022592,2]
[311326938,1705063844362,-500.0,0.00022592,2]
[311326940,1705063844372,-500.0,0.00022592,2]
[311326942,1705063844381,-500.0,0.00022592,2]
[311326944,1705063844391,-500.0,0.00022592,2]
[311326946,1705063844401,-1368.86,0.00022592,2]
[311326948,1705063844411,-500.0,0.00022592,2]
[311326950,1705063844420,-500.0,0.00022592,2]
[311326952,1705063844429,-500.0,0.00022592,2]
[311326954,1705063844439,-772.0,0.00022592,2]
[311326956,1705063844449,-278.01239988,0.00022592,2]
[311326958,1705063844462,-500.0,0.00022592,2]
[311326960,1705063844472,-500.0,0.00022592,2]
[311326962,1705063844482,-1064.54,0.00022592,2]
[311326964,1705063844492,-500.0,0.00022592,2]
[311326966,1705063844501,-705.07,0.00022592,2]
[311326968,1705063844513,-660.22,0.00022592,2]
[311326970,1705063844522,-608.43,0.00022592,2]
[311326972,1705063844532,-500.0,0.00022592,2]
[311326974,1705063844543,-500.0,0.00022592,2]
[311326977,1705063844553,-917.47,0.00022592,2]
[311326979,1705063844562,-500.0,0.00022592,2]
[311326980,1705063844571,-500.0,0.00022592,2]
[311326983,1705063844581,-500.0,0.00022592,2]
[311326985,1705063844591,-500.0,0.00022592,2]
[311326987,1705063844600,-500.0,0.00022592,2]
[311326989,1705063844609,-1227.15,0.00022592,2]
[311326991,1705063844619,-500.0,0.00022592,2]
[311326993,1705063844628,-500.0,0.00022592,2]
[311326995,1705063844638,-500.0,0.00022592,2]
[311326997,1705063844651,-509.48670943,0.00022592,2]
[311326999,1705063844660,-500.0,0.00022592,2]
[311327001,1705063844670,-873.32,0.00022592,2]
[311327003,1705063844680,-3542.34,0.00022592,2]
[311327005,1705063844690,-500.0,0.00022592,2]
[311327007,1705063844700,-500.0,0.00022592,2]
[311327009,1705063844713,-500.0,0.00022592,2]
[311327011,1705063844724,-2030.8,0.00022592,2]
[311327013,1705063844733,-500.0,0.00022592,2]
[311327015,1705063844744,-502.04801814,0.00022592,2]
[311327017,1705063844754,-500.0,0.00022592,2]
[311327019,1705063844764,-500.0,0.00022592,2]
[311327021,1705063844774,-804.67,0.00022592,2]
[311327023,1705063844784,-751.35,0.00022592,2]
[311327025,1705063844794,-500.0,0.00022592,2]
[311327027,1705063844804,-500.0,0.00022592,2]
[311327030,1705063844814,-500.0,0.00022592,2]
[311327032,1705063844823,-500.0,0.00022592,2]
[311327034,1705063844833,-681.41,0.00022592,2]
[311327036,1705063844842,-535.83346632,0.00022592,2]
[311327038,1705063844852,-1040.93,0.00022592,2]
[311327040,1705063844862,-550.77,0.00022592,2]
[311327042,1705063844871,-568.41,0.00022592,2]
[311327044,1705063844880,-500.0,0.00022592,2]
[311327046,1705063844890,-500.0,0.00022592,2]
[311327048,1705063844899,-500.0,0.00022592,2]
[311327050,1705063844908,-860.7,0.00022592,2]
[311327052,1705063844917,-500.0,0.00022592,2]
[311327054,1705063844926,-500.0,0.00022592,2]
[311327056,1705063844936,-500.0,0.00022592,2]
[311327058,1705063844945,-500.0,0.00022592,2]
[311327060,1705063844954,-500.0,0.00022592,2]
[311327062,1705063844967,-500.0,0.00022592,2]
[311327064,1705063844977,-500.0,0.00022592,2]
[311327066,1705063844986,-837.58,0.00022592,2]
[311327068,1705063844997,-500.0,0.00022592,2]
[311327070,1705063845006,-500.0,0.00022592,2]
[311327072,1705063845015,-500.0,0.00022592,2]
[311327074,1705063845024,-500.0,0.00022592,2]
[311327076,1705063845033,-533.65354588,0.00022592,2]
[311327078,1705063845042,-500.0,0.00022592,2]
[311327080,1705063845052,-500.0,0.00022592,2]
[311327083,1705063845062,-500.0,0.00022592,2]
[311327085,1705063845071,-4639.19,0.00022592,2]
[311327086,1705063845081,-1259.47,0.00022592,2]
[311327089,1705063845090,-645.64,0.00022592,2]
[311327091,1705063845100,-500.0,0.00022592,2]
[311327093,1705063845109,-500.0,0.00022592,2]
[311327095,1705063845119,-500.0,0.00022592,2]
[311327097,1705063845129,-500.0,0.00022592,2]
[311327099,1705063845138,-500.0,0.00022592,2]
[311327101,1705063845148,-528.46,0.00022592,2]
[311327103,1705063845157,-500.0,0.00022592,2]
[311327105,1705063845166,-500.0,0.00022592,2]
[311327107,1705063845176,-500.0,0.00022592,2]
[311327109,1705063845185,-500.0,0.00022592,2]
[311327111,1705063845194,-843.77,0.00022592,2]
[311327113,1705063845204,-500.0,0.00022592,2]
[311327115,1705063845215,-500.0,0.00022592,2]
[311327117,1705063845225,-500.0,0.00022592,2]
[311327119,1705063845234,-500.0,0.00022592,2]
[311327121,1705063845243,-500.0,0.00022592,2]
[311327123,1705063845252,-500.0,0.00022592,2]
[311327125,1705063845262,-500.0,0.00022592,2]
[311327127,1705063845273,-500.0,0.00022592,2]
[311327129,1705063845283,-500.0,0.00022592,2]
[311327132,1705063845293,-341.26624199,0.00022592,2]
[311327134,1705063845302,-500.0,0.00022592,2]
[311327136,1705063845312,-500.0,0.00022592,2]
[311327138,1705063845322,-500.0,0.00022592,2]
[311327140,1705063845331,-521.61,0.00022592,2]
[311327142,1705063845340,-500.0,0.00022592,2]
[311327144,1705063845350,-152.43997122,0.00022592,2]
[311327146,1705063845359,-500.0,0.00022592,2]
[311327148,1705063845369,-501.26457525,0.00022592,2]
[311327150,1705063845378,-500.0,0.00022592,2]
[311327152,1705063845388,-500.0,0.00022592,2]
[311327154,1705063845398,-500.0,0.00022592,2]
[311327156,1705063845408,-501.76160924,0.00022592,2]
[311327158,1705063845417,-500.0,0.00022592,2]
[311327160,1705063845427,-500.0,0.00022592,2]
[311327162,1705063845436,-436.9224527,0.00022592,2]
[311327164,1705063845447,-500.0,0.00022592,2]
[311327166,1705063845457,-500.0,0.00022592,2]
[311327168,1705063845470,-525.448081,0.00022592,2]
[311327169,1705063845480,-625.33,0.00022592,2]
[311327171,1705063845490,-1634.05,0.00022592,2]
[311327173,1705063845500,-500.0,0.00022592,2]
[311327175,1705063845509,-500.0,0.00022592,2]
[311327177,1705063845519,-500.0,0.00022592,2]
[311327179,1705063845530,-500.0,0.00022592,2]
[311327182,1705063845539,-497.66582953,0.00022592,2]
[311327184,1705063845549,-500.0,0.00022592,2]
[311327186,1705063845559,-500.0,0.00022592,2]
[311327188,1705063845569,-709.97,0.00022592,2]
[311327190,1705063845579,-500.0,0.00022592,2]
[311327192,1705063845588,-500.0,0.00022592,2]
[311327194,1705063845598,-500.0,0.00022592,2]
[311327195,1705063845607,-835.12,0.00022592,2]
[311327197,1705063845616,-1018.72,0.00022592,2]
[311327199,1705063845626,-500.0,0.00022592,2]
[311327202,1705063845636,-500.0,0.00022592,2]
[311327204,1705063845645,-500.0,0.00022592,2]
[311327206,1705063845654,-577.89844822,0.00022592,2]
[311327208,1705063845663,-500.0,0.00022592,2]
[311327210,1705063845673,-191.79534718,0.00022592,2]
[311327212,1705063845682,-500.0,0.00022592,2]
[311327214,1705063845691,-500.0,0.00022592,2]
[311327216,1705063845701,-500.0,0.00022592,2]
[311327218,1705063845713,-500.0,0.00022592,2]
[311327220,1705063845723,-500.0,0.00022592,2]
[311327222,1705063845733,-500.0,0.00022592,2]
[311327224,1705063845742,-500.0,0.00022592,2]
[311327226,1705063845752,-1257.65,0.00022592,2]
[311327228,1705063845762,-1312.63,0.00022592,2]
[311327230,1705063845772,-500.0,0.00022592,2]
[311327232,1705063845782,-500.0,0.00022592,2]
[311327234,1705063845791,-559.81563275,0.00022592,2]
[311327236,1705063845801,-500.0,0.00022592,2]
[311327238,1705063845811,-511.76,0.00022592,2]
[311327240,1705063845821,-500.0,0.00022592,2]
[311327242,1705063845831,-500.0,0.00022592,2]
[311327244,1705063845840,-1005.82334072,0.00022592,5]
[311327246,1705063845849,-500.0,0.00022592,2]
[311327248,1705063845859,-500.0,0.00022592,2]
[311327250,1705063845869,-500.0,0.00022592,2]
[311327252,1705063845878,-500.0,0.00022592,2]
[311327254,1705063845887,-500.0,0.00022592,2]
[311327256,1705063845897,-500.0,0.00022592,2]
[311327258,1705063845906,-500.0,0.00022592,2]
[311327260,1705063845916,-500.0,0.00022592,2]
[311327261,1705063845926,-500.0,0.00022592,2]
[311327262,1705063845936,-484.44409416,0.00022592,2]
[311327263,1705063845946,-500.0,0.00022592,2]
[311327264,1705063845955,-500.0,0.00022592,2]
[311327265,1705063845968,-500.0,0.00022592,2]
[311327266,1705063845978,-500.0,0.00022592,2]
[311327267,1705063845990,-500.0,0.00022592,2]
[311327268,1705063845999,-500.0,0.00022592,2]
[311327269,1705063846009,-500.0,0.00022592,2]
[311327270,1705063846018,-539.08,0.00022592,2]
[311327271,1705063846028,-544.17302834,0.00022592,2]
[311327272,1705063846037,-446.21479406,0.00022592,2]
[311327273,1705063846046,-500.0,0.00022592,2]
[311327274,1705063846056,-1320.71,0.00022592,2]
[311327275,1705063846066,-500.0,0.00022592,2]
[311327276,1705063846076,-182.22667387,0.00022592,2]
[311327277,1705063846086,-500.0,0.00022592,2]
[311327278,1705063846096,-500.0,0.00022592,2]
[311327279,1705063846106,-500.0,0.00022592,2]
[311327280,1705063846116,-511.33597421,0.00022592,2]
[311327281,1705063846127,-500.0,0.00022592,2]
[311327282,1705063846138,-500.0,0.00022592,2]
[311327283,1705063846148,-500.0,0.00022592,2]
[311327284,1705063846158,-500.0,0.00022592,2]
[311327285,1705063846167,-554.78452699,0.00022592,2]
[311327286,1705063846178,-500.0,0.00022592,2]
[311327287,1705063846188,-969.0,0.00022592,2]
[311327289,1705063846197,-736.76,0.00022592,2]
[311327291,1705063846207,-500.0,0.00022592,2]
[311327293,1705063846218,-500.0,0.00022592,2]
[311327295,1705063846228,-500.0,0.00022592,2]
[311327297,1705063846237,-500.0,0.00022592,2]
[311327300,1705063846247,-628.29178127,0.00022592,2]
[311327303,1705063846257,-500.0,0.00022592,2]
[311327333,1705063846451,-500.0,0.00022592,2]
[311327336,1705063846492,-500.0,0.00022592,2]
[311327338,1705063846501,-500.0,0.00022592,2]
[311327340,1705063846511,-500.0,0.00022592,2]
[311327341,1705063846520,-500.0,0.00022592,2]
[311327343,1705063846529,-1026.07,0.00022592,2]
[311327345,1705063846538,-913.29,0.00022592,2]
[311327347,1705063846548,-500.0,0.00022592,2]
[311327349,1705063846557,-500.0,0.00022592,2]
[311327351,1705063846568,-500.0,0.00022592,2]
[311327353,1705063846577,-721.94,0.00022592,2]
[311327355,1705063846586,-499.99,0.00022592,2]
[311327356,1705063846595,-733.29,0.00022592,2]
[311327357,1705063846605,-500.0,0.00022593,2]
[311327358,1705063846614,-500.0,0.00022593,2]
[311327359,1705063846624,-500.0,0.00022593,2]
[311327360,1705063846633,-469.58145559,0.00022593,2]
[311327361,1705063846643,-286.97432134,0.00022593,2]
[311327362,1705063846652,-207.94131394,0.00022593,2]
[311327363,1705063846661,-500.0,0.00022593,2]
[311327364,1705063846670,-500.0,0.00022593,2]
[311327365,1705063846680,-1423.21,0.00022593,2]
[311327366,1705063846689,-500.0,0.00022593,2]
[311327367,1705063846698,-500.0,0.00022593,2]
[311327368,1705063846707,-860.7,0.00022593,2]
[311327369,1705063846720,-155.0,0.00022594,2]
[311327370,1705063846729,-1031.40550924,0.00022594,2]
[311327371,1705063846740,-291.48413995,0.00022594,2]
[311327372,1705063846749,-221.36139,0.00022594,2]
[311327373,1705063846758,-159.0219645,0.00022594,2]
[311327374,1705063846768,-500.0,0.00022594,2]
[311327375,1705063846777,-500.0,0.00022594,2]
[311327376,1705063846787,-500.0,0.00022594,2]
[311327377,1705063846796,-500.0,0.00022594,2]
[311327378,1705063846805,-500.0,0.00022594,2]
[311327380,1705063846815,-500.0,0.00022594,2]
[311327382,1705063846824,-500.0,0.00022594,2]
[311327384,1705063846833,-500.0,0.00022594,2]
[311327386,1705063846842,-500.0,0.00022594,2]
[311327388,1705063846852,-500.0,0.00022594,2]
[311327390,1705063846861,-500.0,0.00022594,2]
[311327392,1705063846870,-500.0,0.00022594,2]
[311327394,1705063846879,-500.0,0.00022594,2]
[311327397,1705063846889,-500.0,0.00022594,2]
[311327400,1705063846898,-1423.21,0.00022594,2]
[311327403,1705063846908,-500.0,0.00022594,2]
[311327406,1705063846917,-860.7,0.00022594,2]
[311327409,1705063846925,-228.37,0.00022642,2]
[311327412,1705063846936,-162.87,0.00022668,2]
[311327414,1705063846946,-1691.5985,0.000227,2]
[311327418,1705063846956,-2305.8843,0.000227,2]
[311327421,1705063846968,-383.0478,0.000227,2]
[311327424,1705063846977,-164.2189,0.000227,2]
[311327426,1705063846986,-173.3,0.00022735,2]
[311327428,1705063846996,-542.9,0.00022756,2]
[311327431,1705063847006,-228.37,0.00022757,2]
[311327434,1705063847016,-191.59750762,0.00022766,2]
[311327437,1705063847025,-500.0,0.00022768,2]
[311327440,1705063847035,-500.0,0.00022768,2]
[311327442,1705063847044,-1423.21,0.00022768,2]
[311327445,1705063847054,-1423.21,0.00022768,2]
[311327449,1705063847063,-500.0,0.00022768,2]
[311327451,1705063847076,-500.0,0.00022768,2]
[311327455,1705063847085,-860.7,0.00022768,2]
[311327457,1705063847094,-860.7,0.00022768,2]
[311327460,1705063847103,-500.0,0.00022798,2]
[311327463,1705063847113,-500.0,0.00022798,2]
[311327465,1705063847123,-4639.19,0.00022798,2]
[311327467,1705063847132,-500.0,0.00022799,2]
[311327469,1705063847142,-401.73518631,0.00022799,2]
[311327471,1705063847151,-1423.21,0.00022799,2]
[311327473,1705063847160,-1423.21,0.00022799,2]
[311327475,1705063847169,-500.0,0.00022799,2]
[311327477,1705063847179,-500.0,0.00022799,2]
[311327479,1705063847188,-4223.75,0.00022799,2]
[311327481,1705063847198,-500.0,0.00022799,2]
[311327483,1705063847208,-1122.89,0.00022799,2]
[311327485,1705063847219,-945.58,0.00022799,2]
[311327487,1705063847230,-620.52,0.00022799,2]
[311327489,1705063847239,-703.0,0.00022799,2]
[311327491,1705063847248,-1331.16,0.00022799,2]
[311327493,1705063847258,-3318.66,0.00022799,2]
[311327495,1705063847267,-860.7,0.00022799,2]
[311327497,1705063847277,-860.7,0.00022799,2]
[311327499,1705063847287,-300.0,0.00022799,2]
[311327502,1705063847297,-302.45179524,0.00022799,2]
[311327504,1705063847306,-500.0,0.00022799,2]
[311327506,1705063847315,-24495.55590663,0.000228,2]
[311327531,1705063848381,-100095.15407,0.000228,2]
[311327532,1705063848391,-1423.21,0.00022863,2]
[311327533,1705063848401,-500.0,0.00022863,2]
[311327534,1705063848411,-860.7,0.00022863,2]
[311327535,1705063848421,-237.59,0.00022865,2]
[311327536,1705063848431,-205.89563197,0.00022865,2]
[311327537,1705063848440,-500.0,0.00022865,2]
[311327538,1705063848450,-500.0,0.00022865,2]
[311327539,1705063848459,-500.0,0.00022865,2]
[311327540,1705063848470,-500.0,0.00022865,2]
[311327541,1705063848480,-500.0,0.00022865,2]
[311327542,1705063848489,-500.0,0.00022865,2]
[311327543,1705063848498,-500.0,0.00022865,2]
[311327544,1705063848507,-500.0,0.00022865,2]
[311327545,1705063848517,-500.0,0.00022865,2]
[311327546,1705063848527,-500.0,0.00022865,2]
[311327547,1705063848536,-296.1745695,0.00022865,2]
[311327548,1705063848546,-500.0,0.00022865,2]
[311327549,1705063848557,-521.15900426,0.00022865,2]
[311327550,1705063848567,-500.0,0.00022865,2]
[311327551,1705063848577,-500.0,0.00022865,2]
[311327552,1705063848590,-500.0,0.00022865,2]
[311327553,1705063848601,-500.0,0.00022865,2]
[311327554,1705063848610,-500.0,0.00022865,2]
[311327555,1705063848687,-500.0,0.00022865,2]
[311327556,1705063848696,-500.0,0.00022865,2]
[311327557,1705063848705,-500.0,0.00022865,2]
[311327558,1705063848716,-500.0,0.00022865,2]
[311327559,1705063848726,-500.0,0.00022865,2]
[311327560,1705063848737,-500.0,0.00022865,2]
[311327561,1705063848748,-500.0,0.00022865,2]
[311327562,1705063848757,-500.0,0.00022865,2]
[311327563,1705063848766,-500.0,0.00022865,2]
[311327564,1705063848776,-500.0,0.00022865,2]
[311327565,1705063848786,-500.0,0.00022865,2]
[311327566,1705063848796,-500.0,0.00022865,2]
[311327567,1705063848806,-500.0,0.00022865,2]
[311327568,1705063848816,-500.0,0.00022865,2]
[311327569,1705063848825,-500.0,0.00022865,2]
[311327570,1705063848835,-500.0,0.00022865,2]
[311327571,1705063848845,-500.0,0.00022865,2]
[311327572,1705063848854,-500.0,0.00022865,2]
[311327573,1705063848864,-500.0,0.00022865,2]
[311327574,1705063848874,-500.0,0.00022865,2]
[311327575,1705063848883,-500.0,0.00022865,2]
[311327576,1705063848892,-500.0,0.00022865,2]
[311327577,1705063848901,-500.0,0.00022865,2]
[311327578,1705063848910,-500.0,0.00022865,2]
[311327579,1705063848921,-500.0,0.00022865,2]
[311327580,1705063848931,-500.0,0.00022865,2]
[311327581,1705063848942,-500.0,0.00022865,2]
[311327582,1705063848952,-500.0,0.00022865,2]
[311327583,1705063848963,-300.0,0.00022865,2]
[311327584,1705063848972,-500.0,0.00022865,2]
[311327585,1705063848980,-500.0,0.00022865,2]
[311327586,1705063848989,-500.0,0.00022865,2]
[311327587,1705063848999,-500.0,0.00022865,2]
[311327588,1705063849008,-590.57485582,0.00022865,2]
[311327589,1705063849018,-511.97919871,0.00022865,2]
[311327590,1705063849027,-500.0,0.00022865,2]
[311327591,1705063849036,-500.0,0.00022865,2]
[311327592,1705063849046,-500.0,0.00022865,2]
[311327593,1705063849055,-500.0,0.00022865,2]
[311327594,1705063849064,-500.0,0.00022865,2]
[311327595,1705063849073,-1074.41,0.00022865,2]
[311327596,1705063849083,-500.0,0.00022865,2]
[311327597,1705063849092,-500.0,0.00022865,2]
[311327598,1705063849101,-500.0,0.00022865,2]
[311327599,1705063849111,-500.0,0.00022865,2]
[311327600,1705063849121,-500.0,0.00022865,2]
[311327601,1705063849130,-500.0,0.00022865,2]
[311327602,1705063849140,-500.0,0.00022865,2]
[311327603,1705063849149,-4313.59,0.00022865,5]
[311327604,1705063849159,-526.90931256,0.00022865,2]
[311327605,1705063849168,-500.0,0.00022865,2]
[311327606,1705063849177,-500.0,0.00022865,2]
[311327607,1705063849186,-500.0,0.00022865,2]
[311327608,1705063849195,-500.0,0.00022865,2]
[311327609,1705063849204,-500.0,0.00022865,2]
[311327610,1705063849216,-500.0,0.00022865,2]
[311327611,1705063849226,-500.0,0.00022865,2]
[311327612,1705063849235,-2141.96,0.00022865,2]
[311327613,1705063849245,-763.76,0.00022865,2]
[311327614,1705063849254,-500.0,0.00022865,2]
[311327615,1705063849265,-500.0,0.00022865,2]
[311327616,1705063849274,-500.0,0.00022865,2]
[311327617,1705063849284,-13400.37,0.00022865,2]
[311327618,1705063849293,-500.0,0.00022865,2]
[311327619,1705063849302,-419.80772674,0.00022865,2]
[311327620,1705063849311,-500.0,0.00022865,2]
[311327621,1705063849321,-500.0,0.00022865,2]
[311327622,1705063849330,-500.0,0.00022865,2]
[311327623,1705063849339,-500.0,0.00022865,2]
[311327624,1705063849348,-4452.05,0.00022865,2]
[311327625,1705063849360,-500.0,0.00022865,2]
[311327626,1705063849370,-500.0,0.00022865,2]
[311327627,1705063849379,-500.0,0.00022865,2]
[311327628,1705063849388,-500.0,0.00022865,2]
[311327629,1705063849398,-500.0,0.00022865,2]
[311327630,1705063849410,-500.0,0.00022865,2]
[311327631,1705063849421,-5995.38,0.00022865,2]
[311327632,1705063849430,-500.0,0.00022865,2]
[311327633,1705063849440,-500.0,0.00022865,2]
[311327634,1705063849449,-500.0,0.00022865,2]
[311327635,1705063849459,-500.0,0.00022865,2]
[311327636,1705063849470,-500.0,0.00022865,2]
[311327637,1705063849479,-500.0,0.00022865,2]